fUST/lending_fUST_20260129
["ID","MTS","AMOUNT","RATE_DAILY","PERIOD"]
[403894966,1769639440530,-1000.0,0.00028508,30]
[403894967,1769639440539,-1000.0,0.00028508,30]
[403894968,1769639440548,-1000.0,0.00028508,30]
[403894969,1769639440557,-1000.0,0.000289,5]
[403894970,1769639440566,-1120.30664514,0.00029,2]
[403894971,1769639440575,-1041.66666667,0.00029,7]
[403894972,1769639440585,-160.0,0.00029,7]
[403894973,1769639440594,-1021.0,0.00029,2]
[403894974,1769639440602,-450.0,0.00029041,5]
[403894975,1769639440611,-450.0,0.00029041,5]
[403894976,1769639440621,-184.95386914,0.00029238,5]
[403894977,1769639440630,-201.250084,0.00029256,7]
[403894978,1769639440638,-201.250084,0.00029256,7]
[403894979,1769639440647,-201.250084,0.00029256,7]
[403894980,1769639440656,-201.250084,0.00029256,7]
[403894981,1769639440665,-151.0,0.00029256,7]
[403894982,1769639440673,-1957.856,0.00029288,2]
[403894983,1769639440682,-1731.50994973,0.00029288,2]
[403895000,1769639442908,-151.0,0.00023288,2]
[403895002,1769639442917,-2515.14529455,0.00029288,2]
[403895004,1769639442927,-196.0,0.00029315,33]
[403895006,1769639442936,-400.0,0.0002932,3]
[403895008,1769639442945,-2030.296672,0.00029343,2]
[403895010,1769639442954,-1111.55803345,0.00029453,2]
[403895062,1769639445843,-2457.6,0.00011754,2]
[403895401,1769640631712,-189.164,0.00011519,2]
[403895403,1769640631722,-322.0964984,0.00011548,2]
[403895405,1769640631734,-22.84388524,0.00011548,2]
[403895407,1769640631743,-300.0,0.00011653,2]
[403895409,1769640631752,-125.44111476,0.00011653,2]
[403895411,1769640631770,-174.55888524,0.00011653,2]
[403895413,1769640631779,-300.0,0.00011653,2]
[403895415,1769640631789,-431.04328718,0.00011653,2]
[403895417,1769640631800,-476.52,0.00011653,2]
[403895419,1769640631811,-292.43671282,0.00011653,2]
[403895420,1769640631819,-36216.86808758,0.00011654,2]
[403895421,1769640631830,-925.36181593,0.00011654,2]
[403895423,1769640637826,-68398.5454565,0.00011654,2]
[403895424,1769640637838,-1614459.22463999,0.00011654,2]
[403895429,1769640638011,-533.52687392,0.000117,2]
[403895430,1769640638025,-200.0,0.00011753,2]
[403895431,1769640638035,-213.89192034,0.00011753,2]
[403895432,1769640638045,-151.0,0.000118,2]
[403895433,1769640638054,-151.0,0.000118,2]
[403895434,1769640638064,-151.0,0.000118,2]
[403895435,1769640638074,-151.0,0.000118,2]
[403895436,1769640638083,-151.0,0.000118,2]
[403895437,1769640638093,-151.0,0.000118,2]
[403895438,1769640638102,-151.0,0.000118,2]
[403895439,1769640638112,-151.0,0.000118,2]
[403895440,1769640638121,-300.0,0.00011988,2]
[403895441,1769640638131,-300.0,0.00011988,2]
[403895442,1769640638140,-300.0,0.00011988,2]
[403895443,1769640638150,-300.0,0.00011988,2]
[403895444,1769640638159,-300.0,0.00011988,2]
[403895445,1769640638169,-300.0,0.00011988,2]
[403895446,1769640638179,-300.0,0.00011988,2]
[403895447,1769640638188,-300.0,0.00011988,2]
[403895448,1769640638198,-300.0,0.00011988,2]
[403895449,1769640638208,-300.0,0.00011988,2]
[403895450,1769640638218,-300.0,0.00011988,2]
[403895451,1769640638227,-300.0,0.00011988,2]
[403895452,1769640638237,-300.0,0.00011988,2]
[403895453,1769640638247,-300.0,0.00011988,2]
[403895454,1769640638257,-300.0,0.00011988,2]
[403895455,1769640638266,-600.0,0.00011988,2]
[403895456,1769640638276,-250.686993,0.00012301,2]
[403895457,1769640638286,-420.0,0.00012797,2]
[403895458,1769640638295,-250.686993,0.00012819,2]
[403895459,1769640638305,-720.0,0.00013187,2]
[403895460,1769640638314,-500.0,0.00013273,2]
[403895461,1769640638324,-500.0,0.00013273,2]
[403895462,1769640638335,-500.0,0.00013273,2]
[403895463,1769640638345,-500.0,0.00013273,2]
[403895464,1769640638355,-500.0,0.00013273,2]
[403895465,1769640638364,-250.686993,0.00013336,2]
[403895466,1769640638374,-407.02965269,0.00013548,2]
[403895467,1769640638383,-253.55455427,0.00013561,2]
[403895468,1769640638393,-500.0,0.00013561,2]
[403895469,1769640638402,-500.0,0.00013561,2]
[403895470,1769640638412,-300.0,0.00013673,2]
[403895471,1769640638421,-251.03981442,0.00013698,2]
[403895472,1769640638431,-500.0,0.00013698,2]
[403895473,1769640638440,-500.0,0.00013698,2]
[403895474,1769640638449,-1000.0,0.00013699,2]
[403895475,1769640638459,-500.0,0.00013699,2]
[403895476,1769640638467,-1000.0,0.00013821,2]
[403895477,1769640638477,-1000.0,0.00013821,2]
[403895478,1769640638486,-1000.0,0.00013821,2]
[403895479,1769640638496,-250.0,0.00013835,2]
[403895480,1769640638505,-200.34117545,0.00013835,2]
[403895481,1769640638515,-450.0,0.00013835,2]
[403895482,1769640638524,-250.686993,0.00013854,2]
[403895483,1769640638533,-250.0,0.00013972,2]
[403895484,1769640638542,-250.0,0.00013972,2]
[403895485,1769640638551,-250.0,0.00013991,2]
[403895486,1769640638564,-100000.0,0.00014006,2]
[403895487,1769640638574,-587.0,0.00014053,2]
[403895488,1769640638584,-250.0,0.00014109,2]
[403895489,1769640638593,-250.0,0.00014109,2]
[403895490,1769640638602,-693.63223956,0.00014221,2]
[403895491,1769640638613,-1000.0,0.00014247,2]
[403895492,1769640638623,-191.81,0.00014272,2]
[403895493,1769640638633,-1500.0,0.00014368,2]
[403895494,1769640638642,-1500.0,0.00014368,2]
[403895495,1769640638651,-511.71610626,0.00014368,2]
[403895496,1769640638661,-250.686993,0.00014372,2]
[403895497,1769640638670,-864.0,0.00014506,2]
[403895498,1769640638679,-500.0,0.00014795,2]
[403895499,1769640638688,-250.686993,0.0001489,2]
[403895500,1769640638697,-2000.0,0.00014916,2]
[403895501,1769640638706,-2000.0,0.00014916,2]
[403895502,1769640638716,-366.21617,0.00015068,2]
[403895503,1769640638725,-339.65547154,0.0001522,2]
[403895504,1769640638734,-823.0,0.00015433,2]
[403895505,1769640638743,-1202.90287346,0.00015464,2]
[403895506,1769640638752,-2500.0,0.00015464,2]
[403895507,1769640638761,-469.11892175,0.00015548,2]
[403895508,1769640638770,-533.5268739,0.00015637,2]
[403895509,1769640638779,-5038.08922706,0.0001564,2]
[403895510,1769640638789,-1000.0,0.00015956,2]
[403895511,1769640638798,-1500.0,0.00016012,2]
[403895512,1769640638808,-292.36247993,0.00016438,2]
[403895513,1769640638817,-150.42150351,0.00016438,2]
[403895514,1769640638827,-164.57351573,0.00016438,2]
[403895515,1769640638836,-200.0,0.00016473,2]
[403895516,1769640638846,-172.05722388,0.00016685,3]
[403895517,1769640638855,-10000.0,0.00016858,2]
[403895518,1769640638864,-1041.66666667,0.00016936,2]
[403895519,1769640638873,-160.0,0.00016936,2]
[403895520,1769640638882,-160.0,0.00016936,2]
[403895521,1769640638892,-1152.0,0.00016947,2]
[403895522,1769640638901,-531.2081908,0.00017548,2]
[403895523,1769640638911,-1000.0,0.00017552,2]
[403895524,1769640638920,-244.0,0.00017552,2]
[403895525,1769640638930,-210.0,0.00017781,3]
[403895526,1769640638939,-150.12313849,0.00017808,2]
[403895527,1769640638949,-281.81382901,0.00017842,2]
[403895528,1769640638958,-366.21617,0.00018493,2]
[403895529,1769640638968,-1613.0,0.00018611,2]
[403895530,1769640638978,-846.769,0.00019178,2]
[403895531,1769640638987,-846.769,0.00019178,2]
[403895532,1769640638997,-846.769,0.00019178,2]
[403895533,1769640639007,-200.0,0.00019178,2]
[403895534,1769640639016,-168.1,0.000192,2]
[403895535,1769640639025,-172.01,0.000192,2]
[403895536,1769640639036,-161.04,0.000192,2]
[403895537,1769640639046,-1459.38,0.000192,2]
[403895538,1769640639055,-1000.0,0.00019307,2]
[403895539,1769640639065,-492.0,0.00019307,2]
[403895540,1769640639074,-6249.64,0.000194,2]
[403895541,1769640639084,-212.0,0.00019425,3]
[403895542,1769640639094,-593.29745985,0.00019548,2]
[403895543,1769640639103,-533.5268739,0.00019574,2]
[403895544,1769640639113,-764.481,0.00019589,3]
[403895545,1769640639123,-677.411,0.00019589,3]
[403895546,1769640639133,-846.769,0.00019589,3]
[403895547,1769640639142,-879.0,0.00020438,2]
[403895548,1769640639152,-214.0,0.00021068,3]
[403895549,1769640639161,-846.769,0.00021233,7]
[403895550,1769640639170,-1000.0,0.00021238,10]
[403895551,1769640639179,-791.0,0.00021238,10]
[403895552,1769640639188,-655.38672891,0.00021548,2]
[403895553,1769640639197,-366.21617,0.00021918,2]
[403895554,1769640639206,-656.05350674,0.00022613,7]
[403895555,1769640639215,-217.0,0.00022712,8]
[403895556,1769640639225,-1000.0,0.00023361,10]
[403895557,1769640639234,-1000.0,0.00023361,10]
[403895558,1769640639243,-293.17,0.000234,7]
[403895559,1769640639253,-533.5268739,0.00023511,2]
[403895560,1769640639262,-717.47599796,0.00023548,2]
[403895561,1769640639271,-219.0,0.00024356,13]
[403895562,1769640639281,-380.0,0.00024658,2]
[403895563,1769640639290,-500.0,0.00024658,2]
[403895564,1769640639299,-500.0,0.00024795,2]
[403895565,1769640639308,-109572.62170653,0.000249,2]
[403895601,1769640640002,-434.47876755,0.00021677,30]
[403895608,1769640640066,-841.52588397,0.00021677,30]
[403895920,1769640643103,-327.14534848,0.00021677,30]
[403895922,1769640643113,-1026.12934588,0.00023,30]
[403895924,1769640643124,-302.62139999,0.00023,30]
[403895941,1769640643270,-1877.55925413,0.00023,30]
[403895943,1769640643279,-2709.50652217,0.00024323,30]
[403895949,1769640643333,-649.21334594,0.00024323,30]
[403896226,1769640645986,-1450.74013189,0.00024323,30]
[403896229,1769640645996,-12010.24,0.0002489,10]
[403896231,1769640646005,-145137.65709073,0.000249,2]
[403897314,1769641115566,-256.42888323,0.00011,2]
[403897315,1769641117631,-700.77956856,0.00011,2]
[403897316,1769641205542,-42.79154821,0.00011,2]
[403897317,1769641205564,-205.05180049,0.00011,2]
[403897318,1769641208822,-170.28303046,0.00011,2]
[403897319,1769641212264,-152.31562534,0.00011,2]
[403897320,1769641217187,570.4420045,0.00010913,2]
[403897321,1769641225791,5000.0,0.00010913,2]
[403897322,1769641247970,957.20845179,0.00010913,2]
[403897328,1769641500615,10000.01,0.00010552,2]
[403897329,1769641500636,5945.503655,0.00010552,2]
[403897354,1769641831887,-334.27884304,0.00011074,2]
[403897356,1769641831897,-300.0,0.00011352,2]
[403897358,1769641831907,-300.0,0.00011352,2]
[403897359,1769641831916,-300.0,0.00011352,2]
[403897361,1769641831926,-300.0,0.00011352,2]
[403897362,1769641831935,-9112.457699,0.00011353,2]
[403897363,1769641831944,-1342.14897688,0.00011547,2]
[403897365,1769641831953,-229097.91511127,0.00011552,2]
[403897389,1769641838041,-1490902.08488873,0.00011552,2]
[403897391,1769641838051,-151.0,0.00011647,2]
[403897393,1769641838060,-151.0,0.00011647,2]
[403897395,1769641838069,-151.0,0.00011647,2]
[403897397,1769641838078,-151.0,0.00011647,2]
[403897399,1769641838087,-151.0,0.00011647,2]
[403897401,1769641838100,-151.0,0.00011647,2]
[403897403,1769641838112,-151.0,0.00011647,2]
[403897406,1769641838125,-151.0,0.00011647,2]
[403897408,1769641838137,-151.0,0.00011647,2]
[403897410,1769641838150,-500.0,0.00011651,2]
[403897413,1769641838163,-430.33497314,0.00011651,2]
[403897414,1769641838173,-500.0,0.00011651,2]
[403897417,1769641838184,-500.0,0.00011651,2]
[403897419,1769641838195,-500.0,0.00011651,2]
[403897421,1769641838207,-500.0,0.00011651,2]
[403897423,1769641838218,-500.0,0.00011651,2]
[403897425,1769641838230,-500.0,0.00011651,2]
[403897427,1769641838241,-500.0,0.00011651,2]
[403897430,1769641838254,-500.0,0.00011651,2]
[403897432,1769641838266,-500.0,0.00011651,2]
[403897434,1769641838279,-500.0,0.00011651,2]
[403897436,1769641838292,-500.0,0.00011651,2]
[403897439,1769641838303,-269.46111852,0.00011651,2]
[403897441,1769641838314,-500.0,0.00011651,2]
[403897443,1769641838326,-500.0,0.00011651,2]
[403897445,1769641838338,-500.0,0.00011651,2]
[403897447,1769641838350,-500.0,0.00011651,2]
[403897450,1769641838363,-500.0,0.00011651,2]
[403897452,1769641838375,-500.0,0.00011651,2]
[403897454,1769641838386,-500.0,0.00011651,2]
[403897456,1769641838397,-500.0,0.00011651,2]
[403897458,1769641838408,-500.0,0.00011651,2]
[403897461,1769641838420,-500.0,0.00011651,2]
[403897463,1769641838431,-500.0,0.00011651,2]
[403897465,1769641838441,-500.0,0.00011651,2]
[403897467,1769641838452,-500.0,0.00011651,2]
[403897469,1769641838462,-500.0,0.00011651,2]
[403897471,1769641838472,-500.0,0.00011651,2]
[403897473,1769641838484,-500.0,0.00011651,2]
[403897476,1769641838495,-500.0,0.00011651,2]
[403897478,1769641838507,-500.0,0.00011651,2]
[403897480,1769641838517,-500.0,0.00011651,2]
[403897482,1769641838528,-500.0,0.00011651,2]
[403897484,1769641838538,-500.0,0.00011651,2]
[403897486,1769641838549,-197.78761931,0.00011651,2]
[403897488,1769641838560,-500.0,0.00011651,2]
[403897490,1769641838571,-500.0,0.00011651,2]
[403897493,1769641838581,-500.0,0.00011651,2]
[403897495,1769641838591,-500.0,0.00011651,2]
[403897497,1769641838601,-500.0,0.00011651,2]
[403897499,1769641838611,-500.0,0.00011651,2]
[403897501,1769641838622,-500.0,0.00011651,2]
[403897503,1769641838633,-500.0,0.00011651,2]
[403897506,1769641838645,-500.0,0.00011651,2]
[403897508,1769641838656,-500.0,0.00011651,2]
[403897510,1769641838667,-500.0,0.00011651,2]
[403897512,1769641838678,-500.0,0.00011651,2]
[403897514,1769641838689,-500.0,0.00011651,2]
[403897517,1769641838700,-500.0,0.00011651,2]
[403897519,1769641838712,-500.0,0.00011651,2]
[403897521,1769641838723,-500.0,0.00011651,2]
[403897523,1769641838735,-500.0,0.00011651,2]
[403897526,1769641838747,-500.0,0.00011651,2]
[403897528,1769641838757,-500.0,0.00011651,2]
[403897530,1769641838767,-500.0,0.00011651,2]
[403897532,1769641838777,-500.0,0.00011651,2]
[403897534,1769641838788,-500.0,0.00011651,2]
[403897536,1769641838797,-500.0,0.00011651,2]
[403897538,1769641838807,-500.0,0.00011651,2]
[403897540,1769641838817,-500.0,0.00011651,2]
[403897543,1769641838829,-500.0,0.00011651,2]
[403897545,1769641838840,-500.0,0.00011651,2]
[403897547,1769641838853,-500.0,0.00011651,2]
[403897549,1769641838864,-500.0,0.00011651,2]
[403897552,1769641838876,-533.92448035,0.00011651,2]
[403897554,1769641838887,-500.0,0.00011651,2]
[403897556,1769641838898,-500.0,0.00011651,2]
[403897558,1769641838909,-500.0,0.00011651,2]
[403897560,1769641838920,-500.0,0.00011651,2]
[403897561,1769641838933,-500.0,0.00011651,2]
[403897563,1769641838942,-500.0,0.00011651,2]
[403897565,1769641838954,-500.0,0.00011651,2]
[403897567,1769641838965,-500.0,0.00011651,2]
[403897569,1769641838975,-500.0,0.00011651,2]
[403897570,1769641838985,-500.0,0.00011651,2]
[403897571,1769641838996,-500.0,0.00011651,2]
[403897572,1769641839006,-500.0,0.00011651,2]
[403897573,1769641839016,-500.0,0.00011651,2]
[403897574,1769641839030,-500.0,0.00011651,2]
[403897575,1769641839041,-500.0,0.00011651,2]
[403897576,1769641839052,-500.0,0.00011651,2]
[403897577,1769641839063,-500.0,0.00011651,2]
[403897578,1769641839073,-500.0,0.00011651,2]
[403897579,1769641839084,-500.0,0.00011651,2]
[403897580,1769641839095,-500.0,0.00011651,2]
[403897581,1769641839106,-500.0,0.00011651,2]
[403897582,1769641839116,-500.0,0.00011651,2]
[403897583,1769641839127,-500.0,0.00011651,2]
[403897584,1769641839139,-500.0,0.00011651,2]
[403897585,1769641839151,-500.0,0.00011651,2]
[403897586,1769641839162,-500.0,0.00011651,2]
[403897587,1769641839174,-500.0,0.00011651,2]
[403897588,1769641839186,-500.0,0.00011651,2]
[403897589,1769641839196,-500.0,0.00011651,2]
[403897590,1769641839207,-500.0,0.00011651,2]
[403897591,1769641839218,-500.0,0.00011651,2]
[403897592,1769641839228,-500.0,0.00011651,2]
[403897593,1769641839239,-500.0,0.00011651,2]
[403897594,1769641839249,-500.0,0.00011651,2]
[403897595,1769641839260,-500.0,0.00011651,2]
[403897596,1769641839270,-500.0,0.00011651,2]
[403897597,1769641839280,-500.0,0.00011651,2]
[403897598,1769641839291,-500.0,0.00011651,2]
[403897599,1769641839301,-500.0,0.00011651,2]
[403897600,1769641839311,-500.0,0.00011651,2]
[403897601,1769641839321,-500.0,0.00011651,2]
[403897602,1769641839331,-500.0,0.00011651,2]
[403897603,1769641839341,-500.0,0.00011651,2]
[403897604,1769641839351,-496.79555112,0.00011651,2]
[403897605,1769641839362,-500.0,0.00011651,2]
[403897606,1769641839373,-500.0,0.00011651,2]
[403897607,1769641839383,-500.0,0.00011651,2]
[403897608,1769641839394,-500.0,0.00011651,2]
[403897609,1769641839404,-500.0,0.00011651,2]
[403897610,1769641839414,-500.0,0.00011651,2]
[403897612,1769641839424,-500.0,0.00011651,2]
[403897614,1769641839435,-500.0,0.00011651,2]
[403897616,1769641839446,-500.0,0.00011651,2]
[403897618,1769641839456,-500.0,0.00011651,2]
[403897620,1769641839466,-500.0,0.00011651,2]
[403897622,1769641839476,-500.0,0.00011651,2]
[403897624,1769641839487,-500.0,0.00011651,2]
[403897626,1769641839497,-500.0,0.00011651,2]
[403897628,1769641839507,-500.0,0.00011651,2]
[403897630,1769641839518,-500.0,0.00011651,2]
[403897633,1769641839529,-500.0,0.00011651,2]
[403897635,1769641839541,-500.0,0.00011651,2]
[403897637,1769641839551,-500.0,0.00011651,2]
[403897639,1769641839562,-500.0,0.00011651,2]
[403897641,1769641839572,-500.0,0.00011651,2]
[403897643,1769641839582,-500.0,0.00011651,2]
[403897645,1769641839592,-500.0,0.00011651,2]
[403897647,1769641839602,-500.0,0.00011651,2]
[403897649,1769641839613,-500.0,0.00011651,2]
[403897651,1769641839623,-500.0,0.00011651,2]
[403897654,1769641839634,-500.0,0.00011651,2]
[403897656,1769641839644,-500.0,0.00011651,2]
[403897658,1769641839654,-500.0,0.00011651,2]
[403897660,1769641839665,-500.0,0.00011651,2]
[403897662,1769641839675,-500.0,0.00011651,2]
[403897664,1769641839685,-500.0,0.00011651,2]
[403897666,1769641839695,-500.0,0.00011651,2]
[403897668,1769641839706,-500.0,0.00011651,2]
[403897670,1769641839716,-500.0,0.00011651,2]
[403897672,1769641839726,-500.0,0.00011651,2]
[403897674,1769641839737,-500.0,0.00011651,2]
[403897691,1769641839908,-500.0,0.00011651,2]
[403897694,1769641839924,-500.0,0.00011651,2]
[403897696,1769641839934,-500.0,0.00011651,2]
[403897698,1769641839943,-500.0,0.00011651,2]
[403897699,1769641839952,-500.0,0.00011651,2]
[403897701,1769641839961,-500.0,0.00011651,2]
[403897703,1769641839971,-500.0,0.00011651,2]
[403897705,1769641839980,-500.0,0.00011651,2]
[403897706,1769641839989,-299.75417992,0.00011651,2]
[403897707,1769641839999,-500.0,0.00011651,2]
[403897708,1769641840007,-500.0,0.00011651,2]
[403897709,1769641840017,-500.0,0.00011651,2]
[403897710,1769641840026,-500.0,0.00011651,2]
[403897711,1769641840035,-500.0,0.00011651,2]
[403897712,1769641840044,-500.0,0.00011651,2]
[403897713,1769641840053,-500.0,0.00011651,2]
[403897714,1769641840062,-500.0,0.00011651,2]
[403897715,1769641840072,-500.0,0.00011651,2]
[403897716,1769641840081,-500.0,0.00011651,2]
[403897717,1769641840090,-500.0,0.00011651,2]
[403897718,1769641840099,-187.10272004,0.00011651,2]
[403897719,1769641840108,-500.0,0.00011651,2]
[403897720,1769641840116,-500.0,0.00011651,2]
[403897721,1769641840125,-500.0,0.00011651,2]
[403897722,1769641840135,-500.0,0.00011651,2]
[403897723,1769641840144,-500.0,0.00011651,2]
[403897724,1769641840153,-500.0,0.00011651,2]
[403897725,1769641840162,-500.0,0.00011651,2]
[403897726,1769641840172,-500.0,0.00011651,2]
[403897727,1769641840181,-500.0,0.00011651,2]
[403897728,1769641840190,-500.0,0.00011651,2]
[403897729,1769641840201,-500.0,0.00011651,2]
[403897730,1769641840210,-500.0,0.00011651,2]
[403897731,1769641840219,-500.0,0.00011651,2]
[403897732,1769641840228,-500.0,0.00011651,2]
[403897733,1769641840237,-500.0,0.00011651,2]
[403897734,1769641840247,-500.0,0.00011651,2]
[403897735,1769641840256,-500.0,0.00011651,2]
[403897736,1769641840266,-500.0,0.00011651,2]
[403897737,1769641840275,-500.0,0.00011651,2]
[403897738,1769641840285,-500.0,0.00011651,2]
[403897739,1769641840294,-500.0,0.00011651,2]
[403897740,1769641840304,-500.0,0.00011651,2]
[403897741,1769641840313,-500.0,0.00011651,2]
[403897742,1769641840322,-500.0,0.00011651,2]
[403897743,1769641840331,-500.0,0.00011651,2]
[403897744,1769641840341,-500.0,0.00011651,2]
[403897745,1769641840350,-500.0,0.00011651,2]
[403897746,1769641840359,-500.0,0.00011651,2]
[403897747,1769641840368,-500.0,0.00011651,2]
[403897748,1769641840377,-500.0,0.00011651,2]
[403897749,1769641840386,-500.0,0.00011651,2]
[403897750,1769641840395,-500.0,0.00011651,2]
[403897751,1769641840404,-500.0,0.00011651,2]
[403897752,1769641840414,-467.38654935,0.00011651,2]
[403897753,1769641840423,-500.0,0.00011651,2]
[403897754,1769641840432,-500.0,0.00011651,2]
[403897755,1769641840441,-500.0,0.00011651,2]
[403897756,1769641840450,-500.0,0.00011651,2]
[403897757,1769641840459,-500.0,0.00011651,2]
[403897759,1769641840467,-500.0,0.00011651,2]
[403897761,1769641840476,-500.0,0.00011651,2]
[403897763,1769641840485,-500.0,0.00011651,2]
[403897765,1769641840494,-500.0,0.00011651,2]
[403897767,1769641840503,-500.0,0.00011651,2]
[403897769,1769641840512,-500.0,0.00011651,2]
[403897771,1769641840521,-500.0,0.00011651,2]
[403897773,1769641840530,-500.0,0.00011651,2]
[403897774,1769641840539,-500.0,0.00011651,2]
[403897776,1769641840548,-500.0,0.00011651,2]
[403897778,1769641840557,-500.0,0.00011651,2]
[403897780,1769641840566,-500.0,0.00011651,2]
[403897782,1769641840575,-500.0,0.00011651,2]
[403897784,1769641840583,-500.0,0.00011651,2]
[403897786,1769641840593,-500.0,0.00011651,2]
[403897788,1769641840602,-500.0,0.00011651,2]
[403897790,1769641840611,-500.0,0.00011651,2]
[403897792,1769641840621,-500.0,0.00011651,2]
[403897794,1769641840630,-187.08101375,0.00011652,2]
[403897796,1769641840639,-336.95990842,0.00011652,2]
[403897798,1769641840648,-500.0,0.00011653,2]
[403897800,1769641840657,-151.331,0.00011653,2]
[403897802,1769641840666,-300.0,0.00011886,2]
[403897804,1769641840676,-300.0,0.00011886,2]
[403897806,1769641840685,-300.0,0.00011886,2]
[403897808,1769641840695,-300.0,0.00011886,2]
[403897810,1769641840704,-300.0,0.00011886,2]
[403897812,1769641840713,-300.0,0.00011886,2]
[403897814,1769641840722,-300.0,0.00011886,2]
[403897816,1769641840732,-300.0,0.00011886,2]
[403897818,1769641840741,-300.0,0.00011886,2]
[403897820,1769641840750,-300.0,0.00011886,2]
[403897822,1769641840759,-300.0,0.00011886,2]
[403897824,1769641840768,-300.0,0.00011886,2]
[403897826,1769641840778,-300.0,0.00011886,2]
[403897828,1769641840787,-300.0,0.00011886,2]
[403897830,1769641840797,-300.0,0.00011886,2]
[403897832,1769641840806,-600.0,0.00011886,2]
[403897834,1769641840815,-500.0,0.00011927,2]
[403897835,1769641840824,-1000.0,0.00012,2]
[403897837,1769641840833,-389.95699981,0.00012057,2]
[403897839,1769641840842,-500.0,0.00012201,2]
[403897841,1769641840852,-420.0,0.0001247,2]
[403897843,1769641840862,-500.0,0.00012475,2]
[403897845,1769641840871,-500.0,0.00012749,2]
[403897847,1769641840881,-2000.0,0.00012999,2]
[403897849,1769641840894,-394.44903479,0.00013074,2]
[403897851,1769641840903,-720.0,0.00013075,2]
[403897853,1769641840913,-500.0,0.00013273,2]
[403897855,1769641840923,-500.0,0.00013273,2]
[403897857,1769641840932,-500.0,0.00013273,2]
[403897859,1769641840942,-500.0,0.00013273,2]
[403897861,1769641840951,-500.0,0.00013273,2]
[403897863,1769641840962,-191.81,0.00013599,2]
[403897865,1769641840971,-300.0,0.00013673,2]
[403897867,1769641840980,-512.70185615,0.00013698,2]
[403897869,1769641840990,-500.0,0.00013698,2]
[403897871,1769641841000,-587.0,0.00013698,2]
[403897873,1769641841009,-906.494079,0.00013699,2]
[403897875,1769641841018,-604.32481069,0.00013699,2]
[403897877,1769641841027,-500.0,0.00013699,2]
[403897879,1769641841036,-500.0,0.00013699,2]
[403897881,1769641841045,-500.0,0.00013699,2]
[403897883,1769641841055,-500.0,0.00013699,2]
[403897885,1769641841064,-500.0,0.00013699,2]
[403897887,1769641841073,-421.30369645,0.00013699,2]
[403897889,1769641841083,-507.06964924,0.00013821,2]
[403897891,1769641841092,-500.0,0.00013821,2]
[403897893,1769641841101,-1000.0,0.00013821,2]
[403897895,1769641841111,-1000.0,0.00013821,2]
[403897897,1769641841120,-500.0,0.00013835,2]
[403897899,1769641841129,-500.0,0.00013835,2]
[403897901,1769641841138,-500.0,0.00013835,2]
[403897903,1769641841147,-1342.14897684,0.0001389,2]
[403897905,1769641841156,-503.23543832,0.00013972,2]
[403897907,1769641841165,-500.0,0.00013972,2]
[403897909,1769641841174,-501.03981442,0.00013972,2]